[Event "Early-Titled-Tuesday-Blitz-May-07-2024"]
[Site "Chess.com"]
[Date "2024.05.07"]
[Round "1"]
[White "IlanSchnaider"]
[Black "AccioChess"]
[Result "0-1"]
[WhiteElo "2723"]
[BlackElo "2438"]
[TimeControl "180+1"]
[EndTime "8:08:11 PDT"]
[Termination "AccioChess won by checkmate"]

1. e4 {[%clk 0:03:00.9]} 1... c5 {[%clk 0:02:57.1]} 2. Nc3 {[%clk 0:03:00.2]}
2... e6 {[%clk 0:02:55.9]} 3. Nf3 {[%clk 0:02:58.9]} 3... Nc6 {[%clk 0:02:53.3]}
4. d4 {[%clk 0:02:57.5]} 4... cxd4 {[%clk 0:02:54.2]} 5. Nxd4 {[%clk 0:02:58.4]}
5... Qc7 {[%clk 0:02:51.2]} 6. Be2 {[%clk 0:02:56.3]} 6... a6 {[%clk 0:02:49.5]}
7. Nxc6 {[%clk 0:02:51.1]} 7... bxc6 {[%clk 0:02:44]} 8. Qd3 {[%clk 0:02:51.4]}
8... Nf6 {[%clk 0:02:41.1]} 9. O-O {[%clk 0:02:49.2]} 9... d5 {[%clk 0:02:32.7]}
10. Bg5 {[%clk 0:02:49.4]} 10... Be7 {[%clk 0:02:26.9]} 11. h3 {[%clk
0:02:38.7]} 11... h6 {[%clk 0:02:12.2]} 12. Bh4 {[%clk 0:02:33]} 12... Nxe4
{[%clk 0:01:55.5]} 13. Bxe7 {[%clk 0:02:32]} 13... Nxc3 {[%clk 0:01:55.2]} 14.
Qxc3 {[%clk 0:02:32.3]} 14... Kxe7 {[%clk 0:01:52.2]} 15. Qxg7 {[%clk
0:02:32.5]} 15... Bb7 {[%clk 0:01:34.5]} 16. Bh5 {[%clk 0:02:31.9]} 16... Qf4
{[%clk 0:01:34.4]} 17. Qc3 {[%clk 0:02:30.3]} 17... Rhg8 {[%clk 0:01:25.1]} 18.
Kh1 {[%clk 0:01:48.4]} 18... Rg5 {[%clk 0:01:07.1]} 19. Bf3 {[%clk 0:01:34.1]}
19... Rag8 {[%clk 0:00:59.3]} 20. Rae1 {[%clk 0:01:25.8]} 20... Qd6 {[%clk
0:00:51.3]} 21. Qb3 {[%clk 0:01:18.8]} 21... Ba8 {[%clk 0:00:45.7]} 22. c4
{[%clk 0:01:14.5]} 22... c5 {[%clk 0:00:29.3]} 23. Rd1 {[%clk 0:00:27.3]} 23...
Rb8 {[%clk 0:00:19.4]} 24. Qe3 {[%clk 0:00:24.3]} 24... d4 {[%clk 0:00:17.4]}
25. Qa3 {[%clk 0:00:20.2]} 25... Bxf3 {[%clk 0:00:16.6]} 26. Qxf3 {[%clk
0:00:21.1]} 26... Rxb2 {[%clk 0:00:16.6]} 27. Rb1 {[%clk 0:00:20.7]} 27... Qb6
{[%clk 0:00:16.6]} 28. Rxb2 {[%clk 0:00:19]} 28... Qxb2 {[%clk 0:00:17.5]} 29.
a4 {[%clk 0:00:19.6]} 29... Rf5 {[%clk 0:00:17.2]} 30. Qg3 {[%clk 0:00:19.2]}
30... Qe2 {[%clk 0:00:17.3]} 31. Rb1 {[%clk 0:00:17.1]} 31... Qxf2 {[%clk
0:00:16.7]} 32. Qc7+ {[%clk 0:00:14.3]} 32... Kf6 {[%clk 0:00:17.1]} 33. a5
{[%clk 0:00:06.1]} 33... d3 {[%clk 0:00:16.1]} 34. Qd8+ {[%clk 0:00:06.4]} 34...
Kg7 {[%clk 0:00:15.9]} 35. Qxd3 {[%clk 0:00:06.5]} 35... Rg5 {[%clk 0:00:14.2]}
36. Rg1 {[%clk 0:00:06.3]} 36... Rg3 {[%clk 0:00:13.2]} 37. Qe4 {[%clk
0:00:05.1]} 37... h5 {[%clk 0:00:12.4]} 38. Qe5+ {[%clk 0:00:04.8]} 38... Kg6
{[%clk 0:00:12.7]} 39. Qe4+ {[%clk 0:00:02.4]} 39... Qf5 {[%clk 0:00:12.8]} 40.
Qe2 {[%clk 0:00:01.3]} 40... h4 {[%clk 0:00:11.5]} 41. Qe1 {[%clk 0:00:01.5]}
41... Qf4 {[%clk 0:00:10.7]} 42. Qe2 {[%clk 0:00:01.8]} 42... Qd4 {[%clk
0:00:10]} 43. Qc2+ {[%clk 0:00:02.3]} 43... f5 {[%clk 0:00:09.4]} 44. Qe2 {[%clk
0:00:02.7]} 44... e5 {[%clk 0:00:08.7]} 45. Rb1 {[%clk 0:00:01.4]} 45... e4
{[%clk 0:00:04]} 46. Rb6+ {[%clk 0:00:01.9]} 46... Kg5 {[%clk 0:00:04.3]} 47.
Rb1 {[%clk 0:00:02.3]} 47... f4 {[%clk 0:00:03.9]} 48. Qb2 {[%clk 0:00:01.7]}
48... f3 {[%clk 0:00:03.3]} 49. Qc1+ {[%clk 0:00:01.7]} 49... e3 {[%clk
0:00:02.9]} 50. Rb5 {[%clk 0:00:01.1]} 50... fxg2+ {[%clk 0:00:02.7]} 51. Kh2
{[%clk 0:00:01.1]} 51... g1=Q+ {[%clk 0:00:01.7]} 52. Qxg1 {[%clk 0:00:02]}
52... Rxg1 {[%clk 0:00:02]} 53. Rxc5+ {[%clk 0:00:02.7]} 53... Qxc5 {[%clk
0:00:02]} 54. Kxg1 {[%clk 0:00:03.6]} 54... Qxc4 {[%clk 0:00:02.5]} 55. Kh2
{[%clk 0:00:04.2]} 55... Kf4 {[%clk 0:00:03.4]} 56. Kg2 {[%clk 0:00:04.8]} 56...
Qb4 {[%clk 0:00:04.3]} 57. Kh1 {[%clk 0:00:05.7]} 57... Qxa5 {[%clk 0:00:05]}
58. Kh2 {[%clk 0:00:06.6]} 58... Qd2+ {[%clk 0:00:05.6]} 59. Kg1 {[%clk
0:00:06.8]} 59... Qe1+ {[%clk 0:00:06.5]} 60. Kh2 {[%clk 0:00:07]} 60... Qf2+
{[%clk 0:00:07.4]} 61. Kh1 {[%clk 0:00:07.7]} 61... Qf3+ {[%clk 0:00:08.2]} 62.
Kh2 {[%clk 0:00:08.3]} 62... e2 {[%clk 0:00:08.7]} 63. Kg1 {[%clk 0:00:09]}
63... e1=Q+ {[%clk 0:00:09.6]} 64. Kh2 {[%clk 0:00:09.9]} 64... Qeg3# {[%clk
0:00:10]} 0-1

[Event "Early-Titled-Tuesday-Blitz-May-07-2024"]
[Site "Chess.com"]
[Date "2024.05.07"]
[Round "1"]
[White "noblerone"]
[Black "GMBenjaminBok"]
[Result "0-1"]
[WhiteElo "2531"]
[BlackElo "3045"]
[TimeControl "180+1"]
[EndTime "8:08:14 PDT"]
[Termination "GMBenjaminBok won on time"]

1. d4 {[%clk 0:02:42.4]} 1... Nf6 {[%clk 0:02:58.7]} 2. c4 {[%clk 0:02:42.6]}
2... e6 {[%clk 0:02:58.9]} 3. Nc3 {[%clk 0:02:43.1]} 3... Bb4 {[%clk 0:02:58.7]}
4. Qb3 {[%clk 0:02:42.9]} 4... c5 {[%clk 0:02:58.3]} 5. dxc5 {[%clk 0:02:41.6]}
5... Nc6 {[%clk 0:02:58.5]} 6. Nf3 {[%clk 0:02:41.4]} 6... Ne4 {[%clk
0:02:56.4]} 7. Bd2 {[%clk 0:02:36.4]} 7... Nxd2 {[%clk 0:02:56.4]} 8. Nxd2
{[%clk 0:02:32.4]} 8... Bxc5 {[%clk 0:02:51.5]} 9. e3 {[%clk 0:02:29.3]} 9...
O-O {[%clk 0:02:49.3]} 10. Be2 {[%clk 0:02:20.5]} 10... b6 {[%clk 0:02:46.6]}
11. O-O {[%clk 0:02:19.8]} 11... Bb7 {[%clk 0:02:46.2]} 12. a3 {[%clk
0:02:16.6]} 12... f5 {[%clk 0:02:43.8]} 13. Bf3 {[%clk 0:02:13.4]} 13... Qe7
{[%clk 0:02:34.6]} 14. Rad1 {[%clk 0:02:03]} 14... f4 {[%clk 0:02:33.5]} 15.
Nce4 {[%clk 0:01:50.1]} 15... fxe3 {[%clk 0:02:32.8]} 16. fxe3 {[%clk
0:01:36.4]} 16... Rad8 {[%clk 0:01:44]} 17. Nxc5 {[%clk 0:01:33.1]} 17... Qxc5
{[%clk 0:01:44.2]} 18. Ne4 {[%clk 0:01:32.6]} 18... Qe5 {[%clk 0:01:37.8]} 19.
Qc3 {[%clk 0:01:19.7]} 19... Ba6 {[%clk 0:01:23]} 20. b3 {[%clk 0:01:01.8]}
20... d5 {[%clk 0:01:19.4]} 21. Qxe5 {[%clk 0:00:53]} 21... Nxe5 {[%clk
0:01:20.3]} 22. Ng5 {[%clk 0:00:48.9]} 22... Rde8 {[%clk 0:00:37.9]} 23. Be2
{[%clk 0:00:35.5]} 23... Rxf1+ {[%clk 0:00:31.8]} 24. Kxf1 {[%clk 0:00:29.3]}
24... h6 {[%clk 0:00:25.5]} 25. Nf3 {[%clk 0:00:27.8]} 25... Ng4 {[%clk
0:00:25.4]} 26. Rc1 {[%clk 0:00:22.3]} 26... dxc4 {[%clk 0:00:22.5]} 27. Bxc4
{[%clk 0:00:20.6]} 27... Nxe3+ {[%clk 0:00:15.8]} 28. Kf2 {[%clk 0:00:21.2]}
28... Nxc4 {[%clk 0:00:14.5]} 29. bxc4 {[%clk 0:00:21.7]} 29... Rc8 {[%clk
0:00:13.9]} 30. Nd2 {[%clk 0:00:21.5]} 30... Rc5 {[%clk 0:00:11.8]} 31. Ke3
{[%clk 0:00:21.4]} 31... Bb7 {[%clk 0:00:10.6]} 32. g3 {[%clk 0:00:21.3]} 32...
Kf7 {[%clk 0:00:10.3]} 33. Rf1+ {[%clk 0:00:18.2]} 33... Ke7 {[%clk 0:00:10]}
34. Kd4 {[%clk 0:00:16.8]} 34... Ra5 {[%clk 0:00:10.1]} 35. Ra1 {[%clk
0:00:17.1]} 35... Rf5 {[%clk 0:00:09.9]} 36. Ke3 {[%clk 0:00:14.6]} 36... Re5+
{[%clk 0:00:10.1]} 37. Kd3 {[%clk 0:00:13.4]} 37... g5 {[%clk 0:00:09.4]} 38. a4
{[%clk 0:00:11.2]} 38... Bc6 {[%clk 0:00:09.3]} 39. a5 {[%clk 0:00:10.5]} 39...
Rxa5 {[%clk 0:00:09]} 40. Rxa5 {[%clk 0:00:10.5]} 40... bxa5 {[%clk 0:00:09.9]}
41. Kc3 {[%clk 0:00:10.2]} 41... Kd6 {[%clk 0:00:09.5]} 42. Nf1 {[%clk
0:00:08.3]} 42... Kc5 {[%clk 0:00:07.6]} 43. Ne3 {[%clk 0:00:07.4]} 43... a4
{[%clk 0:00:08]} 44. Ng4 {[%clk 0:00:07]} 44... h5 {[%clk 0:00:07]} 45. Nf6
{[%clk 0:00:06.8]} 45... h4 {[%clk 0:00:06.9]} 46. gxh4 {[%clk 0:00:07.7]} 46...
gxh4 {[%clk 0:00:07.8]} 47. Nh7 {[%clk 0:00:07.6]} 47... a3 {[%clk 0:00:05.8]}
48. Ng5 {[%clk 0:00:04.9]} 48... e5 {[%clk 0:00:04.3]} 49. Ne6+ {[%clk
0:00:04.8]} 49... Kd6 {[%clk 0:00:04.7]} 50. Ng5 {[%clk 0:00:05.2]} 50... Ba4
{[%clk 0:00:02.6]} 51. Ne4+ {[%clk 0:00:04.3]} 51... Kc6 {[%clk 0:00:02.6]} 52.
Ng5 {[%clk 0:00:04.1]} 52... a2 {[%clk 0:00:02.5]} 53. Kb2 {[%clk 0:00:04.1]}
53... Bb3 {[%clk 0:00:03.2]} 54. c5 {[%clk 0:00:01.5]} 54... Kxc5 {[%clk
0:00:03.3]} 55. Nf3 {[%clk 0:00:02]} 55... e4 {[%clk 0:00:03.7]} 56. Nxh4 {[%clk
0:00:02.4]} 56... e3 {[%clk 0:00:03.5]} 57. Ng2 {[%clk 0:00:02.7]} 57... e2
{[%clk 0:00:03.1]} 58. Nf4 {[%clk 0:00:00.9]} 58... e1=N {[%clk 0:00:02.5]} 0-1

[Event "Early-Titled-Tuesday-Blitz-May-07-2024"]
[Site "Chess.com"]
[Date "2024.05.07"]
[Round "1"]
[White "MAGMAchess02"]
[Black "santosalberto1987"]
[Result "1-0"]
[WhiteElo "2230"]
[BlackElo "2567"]
[TimeControl "180+1"]
[EndTime "8:08:19 PDT"]
[Termination "MAGMAchess02 won by checkmate"]

1. e4 {[%clk 0:02:56.3]} 1... c5 {[%clk 0:02:58.1]} 2. Be2 {[%clk 0:02:55.9]}
2... Nf6 {[%clk 0:02:52.4]} 3. d3 {[%clk 0:02:56]} 3... d5 {[%clk 0:02:51.7]} 4.
e5 {[%clk 0:02:43.2]} 4... Nfd7 {[%clk 0:02:49.6]} 5. f4 {[%clk 0:02:34.2]} 5...
e6 {[%clk 0:02:48.4]} 6. Nf3 {[%clk 0:02:34.7]} 6... Nc6 {[%clk 0:02:47.7]} 7.
O-O {[%clk 0:02:35.3]} 7... Be7 {[%clk 0:02:45.4]} 8. c3 {[%clk 0:02:35.6]} 8...
b5 {[%clk 0:02:43.1]} 9. d4 {[%clk 0:02:34.6]} 9... c4 {[%clk 0:02:42.5]} 10. g4
{[%clk 0:02:27.1]} 10... b4 {[%clk 0:02:41.1]} 11. Qe1 {[%clk 0:02:23.9]} 11...
Rb8 {[%clk 0:02:37.6]} 12. Qg3 {[%clk 0:02:21.4]} 12... Qa5 {[%clk 0:02:30.2]}
13. f5 {[%clk 0:02:18.3]} 13... Nf8 {[%clk 0:02:19.7]} 14. Bg5 {[%clk
0:02:00.6]} 14... bxc3 {[%clk 0:02:16.4]} 15. bxc3 {[%clk 0:01:56.3]} 15... Rb2
{[%clk 0:02:07]} 16. Bd1 {[%clk 0:01:44.9]} 16... Qb6 {[%clk 0:01:51.1]} 17. Ba4
{[%clk 0:01:40.2]} 17... Bd7 {[%clk 0:01:50.1]} 18. Bxc6 {[%clk 0:01:29.1]}
18... Bxc6 {[%clk 0:01:46.5]} 19. Bxe7 {[%clk 0:01:29.6]} 19... Kxe7 {[%clk
0:01:46.3]} 20. f6+ {[%clk 0:01:30.3]} 20... gxf6 {[%clk 0:01:42.5]} 21. exf6+
{[%clk 0:01:30.7]} 21... Ke8 {[%clk 0:01:40.9]} 22. Qd6 {[%clk 0:01:22.3]} 22...
Ng6 {[%clk 0:01:09.4]} 23. Ne5 {[%clk 0:01:04.4]} 23... Ba4 {[%clk 0:01:08.5]}
24. Qa3 {[%clk 0:00:43.5]} 24... Nxe5 {[%clk 0:01:04.1]} 25. Qxa4+ {[%clk
0:00:43.3]} 25... Nd7 {[%clk 0:01:01.6]} 26. Qa3 {[%clk 0:00:29.6]} 26... Kd8
{[%clk 0:00:53]} 27. Qe7+ {[%clk 0:00:27.8]} 27... Kc7 {[%clk 0:00:50.6]} 28.
Qxf7 {[%clk 0:00:25.9]} 28... Rf8 {[%clk 0:00:45.2]} 29. Qe7 {[%clk 0:00:24.9]}
29... Qd6 {[%clk 0:00:41.1]} 30. Qxd6+ {[%clk 0:00:21.2]} 30... Kxd6 {[%clk
0:00:42]} 31. g5 {[%clk 0:00:21.7]} 31... e5 {[%clk 0:00:40.2]} 32. Na3 {[%clk
0:00:18.3]} 32... exd4 {[%clk 0:00:37.3]} 33. cxd4 {[%clk 0:00:19.2]} 33... Re8
{[%clk 0:00:36.8]} 34. Rae1 {[%clk 0:00:19.2]} 34... Rf8 {[%clk 0:00:25.7]} 35.
Re7 {[%clk 0:00:10.9]} 35... a6 {[%clk 0:00:25.4]} 36. Rfe1 {[%clk 0:00:09.9]}
36... Rxa2 {[%clk 0:00:24.3]} 37. R1e6+ {[%clk 0:00:10.2]} 37... Kc7 {[%clk
0:00:24.7]} 38. Rxa6 {[%clk 0:00:08.8]} 38... Kb7 {[%clk 0:00:20.5]} 39. Rd6
{[%clk 0:00:08.8]} 39... Rxa3 {[%clk 0:00:18.6]} 40. Rexd7+ {[%clk 0:00:08.8]}
40... Kc8 {[%clk 0:00:18.9]} 41. Rxh7 {[%clk 0:00:08.7]} 41... c3 {[%clk
0:00:16.9]} 42. Rc6+ {[%clk 0:00:08.8]} 42... Kd8 {[%clk 0:00:17.4]} 43. Rb6
{[%clk 0:00:08.6]} 43... Kc8 {[%clk 0:00:17.5]} 44. Rc6+ {[%clk 0:00:09]} 44...
Kd8 {[%clk 0:00:17.6]} 45. g6 {[%clk 0:00:06.5]} 45... Ra1+ {[%clk 0:00:16.3]}
46. Kg2 {[%clk 0:00:06.8]} 46... Ra2+ {[%clk 0:00:17.2]} 47. Kg3 {[%clk
0:00:07.3]} 47... c2 {[%clk 0:00:17.2]} 48. g7 {[%clk 0:00:06.9]} 48... Re8
{[%clk 0:00:16.6]} 49. Rh8 {[%clk 0:00:06.8]} 49... Ra3+ {[%clk 0:00:14.9]} 50.
Kg4 {[%clk 0:00:07]} 50... Kd7 {[%clk 0:00:15.1]} 51. Rxe8 {[%clk 0:00:06.6]}
51... Kxc6 {[%clk 0:00:15.3]} 52. g8=Q {[%clk 0:00:06.4]} 52... c1=Q {[%clk
0:00:15]} 53. Rc8+ {[%clk 0:00:06.9]} 53... Kb5 {[%clk 0:00:15.4]} 54. Rxc1
{[%clk 0:00:07.8]} 54... Kb4 {[%clk 0:00:15.6]} 55. Qb8+ {[%clk 0:00:08.1]}
55... Ka5 {[%clk 0:00:15.5]} 56. Rc5+ {[%clk 0:00:08.2]} 56... Ka6 {[%clk
0:00:15]} 57. Qb5+ {[%clk 0:00:07.9]} 57... Ka7 {[%clk 0:00:14.6]} 58. Rc7+
{[%clk 0:00:08.6]} 58... Ka8 {[%clk 0:00:14.9]} 59. Qb7# {[%clk 0:00:09.5]} 1-0

[Event "Early-Titled-Tuesday-Blitz-May-07-2024"]
[Site "Chess.com"]
[Date "2024.05.07"]
[Round "1"]
[White "Valeron87"]
[Black "The_Machine04"]
[Result "1/2-1/2"]
[WhiteElo "2462"]
[BlackElo "2777"]
[TimeControl "180+1"]
[EndTime "8:08:21 PDT"]
[Termination "Game drawn - insufficient material"]

1. e4 {[%clk 0:02:58.9]} 1... d6 {[%clk 0:03:00.9]} 2. d4 {[%clk 0:02:58.7]}
2... Nf6 {[%clk 0:02:59.3]} 3. Nc3 {[%clk 0:02:58.2]} 3... e5 {[%clk 0:02:58.9]}
4. Nf3 {[%clk 0:02:58.7]} 4... Nbd7 {[%clk 0:02:58.6]} 5. Bc4 {[%clk 0:02:58.7]}
5... Be7 {[%clk 0:02:58.1]} 6. a4 {[%clk 0:02:59.2]} 6... c6 {[%clk 0:02:57.8]}
7. O-O {[%clk 0:02:58.9]} 7... h6 {[%clk 0:02:56.5]} 8. Re1 {[%clk 0:02:58.8]}
8... Qc7 {[%clk 0:02:57]} 9. a5 {[%clk 0:02:58.4]} 9... Nf8 {[%clk 0:02:57.4]}
10. h3 {[%clk 0:02:56.7]} 10... g5 {[%clk 0:02:57.5]} 11. Bb3 {[%clk 0:02:44.1]}
11... Ng6 {[%clk 0:02:57.2]} 12. Qe2 {[%clk 0:02:37.8]} 12... g4 {[%clk
0:02:57.2]} 13. Nh2 {[%clk 0:02:34.4]} 13... gxh3 {[%clk 0:02:56.9]} 14. g3
{[%clk 0:02:34.9]} 14... h5 {[%clk 0:02:55.3]} 15. Bg5 {[%clk 0:02:27]} 15...
Rg8 {[%clk 0:02:54]} 16. Kh1 {[%clk 0:02:24.3]} 16... h4 {[%clk 0:02:47.4]} 17.
gxh4 {[%clk 0:02:22.4]} 17... Nh7 {[%clk 0:02:38.9]} 18. Bxe7 {[%clk 0:02:09.6]}
18... Qxe7 {[%clk 0:02:39.8]} 19. h5 {[%clk 0:02:09.1]} 19... Nf4 {[%clk
0:02:39]} 20. Qf3 {[%clk 0:02:07.8]} 20... Rg2 {[%clk 0:02:32]} 21. Rg1 {[%clk
0:02:07.6]} 21... Ng5 {[%clk 0:02:28.5]} 22. Qe3 {[%clk 0:02:04.4]} 22... Qf6
{[%clk 0:02:24.8]} 23. dxe5 {[%clk 0:02:03.6]} 23... dxe5 {[%clk 0:02:24.8]} 24.
Rad1 {[%clk 0:02:02.7]} 24... Bd7 {[%clk 0:02:05.6]} 25. Na4 {[%clk 0:01:58]}
25... Rd8 {[%clk 0:01:57]} 26. Qxa7 {[%clk 0:01:55.9]} 26... Bc8 {[%clk
0:01:40.9]} 27. Qe3 {[%clk 0:01:36.1]} 27... Rxg1+ {[%clk 0:01:32.4]} 28. Rxg1
{[%clk 0:01:35.7]} 28... Ng2 {[%clk 0:01:31.5]} 29. Qg3 {[%clk 0:01:34]} 29...
Rd2 {[%clk 0:01:25.5]} 30. f3 {[%clk 0:01:33]} 30... Qf4 {[%clk 0:00:56.4]} 31.
Qxf4 {[%clk 0:01:30.9]} 31... exf4 {[%clk 0:00:57.3]} 32. Nb6 {[%clk 0:01:26.6]}
32... Be6 {[%clk 0:00:54.9]} 33. Bxe6 {[%clk 0:01:26]} 33... fxe6 {[%clk
0:00:55.8]} 34. Nc4 {[%clk 0:01:17.9]} 34... Rxc2 {[%clk 0:00:52.4]} 35. Nd6+
{[%clk 0:01:17.8]} 35... Ke7 {[%clk 0:00:46.3]} 36. Nxb7 {[%clk 0:01:18.7]}
36... Rxb2 {[%clk 0:00:46.4]} 37. a6 {[%clk 0:01:19.2]} 37... Ra2 {[%clk
0:00:46.1]} 38. Nc5 {[%clk 0:01:16.4]} 38... Nh7 {[%clk 0:00:20.5]} 39. Rd1
{[%clk 0:01:14.1]} 39... Nf6 {[%clk 0:00:19.5]} 40. h6 {[%clk 0:01:13.9]} 40...
Ra5 {[%clk 0:00:18.3]} 41. h7 {[%clk 0:01:02]} 41... Nxh7 {[%clk 0:00:16.3]} 42.
Rd7+ {[%clk 0:00:57.1]} 42... Kf6 {[%clk 0:00:16.6]} 43. Rxh7 {[%clk 0:00:46.7]}
43... Rxc5 {[%clk 0:00:16.7]} 44. Nf1 {[%clk 0:00:44.1]} 44... Ra5 {[%clk
0:00:15.8]} 45. a7 {[%clk 0:00:44]} 45... Ra1 {[%clk 0:00:15.7]} 46. Kh2 {[%clk
0:00:43.9]} 46... Ne1 {[%clk 0:00:14.7]} 47. Nd2 {[%clk 0:00:41.5]} 47... Ra2
{[%clk 0:00:14.2]} 48. Kxh3 {[%clk 0:00:41.4]} 48... Ke5 {[%clk 0:00:09.7]} 49.
Nc4+ {[%clk 0:00:41.3]} 49... Kd4 {[%clk 0:00:09.7]} 50. Nb6 {[%clk 0:00:41.7]}
50... Nxf3 {[%clk 0:00:07.5]} 51. a8=Q {[%clk 0:00:38.9]} 51... Rxa8 {[%clk
0:00:06.8]} 52. Rd7+ {[%clk 0:00:38]} 52... Kxe4 {[%clk 0:00:04.8]} 53. Nxa8
{[%clk 0:00:38.9]} 53... c5 {[%clk 0:00:04.7]} 54. Nb6 {[%clk 0:00:37.1]} 54...
Ne5 {[%clk 0:00:04.2]} 55. Rc7 {[%clk 0:00:36.3]} 55... Kd4 {[%clk 0:00:03.3]}
56. Nd7 {[%clk 0:00:34.8]} 56... Nxd7 {[%clk 0:00:01.9]} 57. Rxd7+ {[%clk
0:00:35.7]} 57... Ke4 {[%clk 0:00:02.2]} 58. Kg4 {[%clk 0:00:32.2]} 58... e5
{[%clk 0:00:02.7]} 59. Rd1 {[%clk 0:00:32.7]} 59... c4 {[%clk 0:00:02.8]} 60.
Re1+ {[%clk 0:00:32.5]} 60... Kd4 {[%clk 0:00:03.4]} 61. Kf3 {[%clk 0:00:31.8]}
61... c3 {[%clk 0:00:03.7]} 62. Re4+ {[%clk 0:00:31.2]} 62... Kd3 {[%clk
0:00:04]} 63. Rxe5 {[%clk 0:00:30.9]} 63... c2 {[%clk 0:00:04.9]} 64. Rd5+
{[%clk 0:00:24.2]} 64... Kc3 {[%clk 0:00:05.2]} 65. Rd8 {[%clk 0:00:24.6]} 65...
c1=Q {[%clk 0:00:05.3]} 66. Rc8+ {[%clk 0:00:24.6]} 66... Kb2 {[%clk 0:00:06]}
67. Rxc1 {[%clk 0:00:24.9]} 67... Kxc1 {[%clk 0:00:06.9]} 68. Kxf4 {[%clk
0:00:25.4]} 1/2-1/2

[Event "Early-Titled-Tuesday-Blitz-May-07-2024"]
[Site "Chess.com"]
[Date "2024.05.07"]
[Round "1"]
[White "JJDAREK"]
[Black "tetrix83"]
[Result "0-1"]
[WhiteElo "2371"]
[BlackElo "2663"]
[TimeControl "180+1"]
[EndTime "8:08:26 PDT"]
[Termination "tetrix83 won on time"]

1. d4 {[%clk 0:03:00.9]} 1... Nf6 {[%clk 0:02:59.8]} 2. c4 {[%clk 0:02:59.9]}
2... g6 {[%clk 0:03:00.1]} 3. Nc3 {[%clk 0:02:59.1]} 3... Bg7 {[%clk 0:03:00.4]}
4. e4 {[%clk 0:02:59.1]} 4... d6 {[%clk 0:03:00]} 5. Be2 {[%clk 0:02:59.3]} 5...
O-O {[%clk 0:02:59.9]} 6. Nf3 {[%clk 0:02:59.5]} 6... e5 {[%clk 0:02:59.8]} 7.
d5 {[%clk 0:03:00.1]} 7... a5 {[%clk 0:02:59.4]} 8. Bg5 {[%clk 0:02:57.3]} 8...
h6 {[%clk 0:02:52.3]} 9. Bh4 {[%clk 0:02:57.3]} 9... Na6 {[%clk 0:02:52.3]} 10.
Nd2 {[%clk 0:02:56.9]} 10... c5 {[%clk 0:02:42.1]} 11. g4 {[%clk 0:02:28.9]}
11... Qd7 {[%clk 0:02:34.3]} 12. g5 {[%clk 0:02:16.7]} 12... hxg5 {[%clk
0:02:32.5]} 13. Bxg5 {[%clk 0:02:17.6]} 13... Nh7 {[%clk 0:02:32.5]} 14. Be3
{[%clk 0:02:17.2]} 14... f5 {[%clk 0:02:31.4]} 15. f3 {[%clk 0:02:13.9]} 15...
Bf6 {[%clk 0:02:22]} 16. Nf1 {[%clk 0:01:37]} 16... Bh4+ {[%clk 0:02:18.5]} 17.
Bf2 {[%clk 0:01:22.1]} 17... Qe7 {[%clk 0:02:18]} 18. Bxh4 {[%clk 0:01:08.1]}
18... Qxh4+ {[%clk 0:02:17.9]} 19. Kd2 {[%clk 0:01:09]} 19... Nf6 {[%clk
0:02:01.4]} 20. a3 {[%clk 0:00:51]} 20... fxe4 {[%clk 0:02:00.3]} 21. fxe4
{[%clk 0:00:48.7]} 21... Nxe4+ {[%clk 0:01:56.1]} 22. Nxe4 {[%clk 0:00:49.6]}
22... Qxe4 {[%clk 0:01:54.7]} 23. Ng3 {[%clk 0:00:35]} 23... Qd4+ {[%clk
0:01:39.1]} 24. Kc2 {[%clk 0:00:35.3]} 24... Rf2 {[%clk 0:01:15]} 25. Qxd4
{[%clk 0:00:29.8]} 25... cxd4 {[%clk 0:01:14.7]} 26. Raf1 {[%clk 0:00:28.6]}
26... Bf5+ {[%clk 0:00:40.2]} 27. Kd2 {[%clk 0:00:19.9]} 27... Rxf1 {[%clk
0:00:40.3]} 28. Rxf1 {[%clk 0:00:20.1]} 28... Rf8 {[%clk 0:00:40.4]} 29. h4
{[%clk 0:00:17.2]} 29... Nc5 {[%clk 0:00:39.7]} 30. h5 {[%clk 0:00:15.8]} 30...
e4 {[%clk 0:00:38.2]} 31. hxg6 {[%clk 0:00:13.2]} 31... e3+ {[%clk 0:00:36.5]}
32. Kd1 {[%clk 0:00:11.5]} 32... Bxg6 {[%clk 0:00:36.4]} 33. Rxf8+ {[%clk
0:00:11.9]} 33... Kxf8 {[%clk 0:00:36.4]} 34. b4 {[%clk 0:00:12]} 34... axb4
{[%clk 0:00:35.5]} 35. axb4 {[%clk 0:00:12.9]} 35... Na6 {[%clk 0:00:32.4]} 36.
b5 {[%clk 0:00:07.6]} 36... Nc5 {[%clk 0:00:27.8]} 37. Bh5 {[%clk 0:00:08.2]}
37... Bh7 {[%clk 0:00:25.9]} 38. Bg4 {[%clk 0:00:06]} 38... d3 {[%clk
0:00:24.6]} 39. Bf5 {[%clk 0:00:06.3]} 39... e2+ {[%clk 0:00:14.8]} 40. Ke1
{[%clk 0:00:03.6]} 40... Bg8 {[%clk 0:00:09.3]} 41. Ne4 {[%clk 0:00:02]} 41...
Nxe4 {[%clk 0:00:02.4]} 42. Bxe4 {[%clk 0:00:02.9]} 42... Ke7 {[%clk 0:00:02.3]}
43. Bxd3 {[%clk 0:00:03.2]} 43... Kf6 {[%clk 0:00:02.7]} 44. Bxe2 {[%clk
0:00:03.4]} 44... Ke5 {[%clk 0:00:03.2]} 45. Kd2 {[%clk 0:00:04]} 45... Kd4
{[%clk 0:00:03.8]} 46. Kc2 {[%clk 0:00:04.3]} 46... b6 {[%clk 0:00:04.3]} 47.
Kb3 {[%clk 0:00:04.6]} 47... Bh7 {[%clk 0:00:04.5]} 48. Bf1 {[%clk 0:00:04.7]}
48... Be4 {[%clk 0:00:04.4]} 49. Be2 {[%clk 0:00:05]} 49... Bf5 {[%clk 0:00:04]}
50. Bf1 {[%clk 0:00:05.4]} 50... Bg4 {[%clk 0:00:03.1]} 51. Bg2 {[%clk 0:00:05]}
51... Be2 {[%clk 0:00:03.1]} 52. Bh3 {[%clk 0:00:04.5]} 52... Bxc4+ {[%clk
0:00:03.6]} 53. Kb4 {[%clk 0:00:05]} 53... Bxd5 {[%clk 0:00:03.8]} 54. Bd7
{[%clk 0:00:05]} 54... Bc4 {[%clk 0:00:03.8]} 55. Bc6 {[%clk 0:00:04.5]} 55...
d5 {[%clk 0:00:03.9]} 56. Bd7 {[%clk 0:00:04.9]} 56... Be2 {[%clk 0:00:04]} 57.
Bf5 {[%clk 0:00:04.6]} 57... Ke3 {[%clk 0:00:03.7]} 58. Bg6 {[%clk 0:00:04.3]}
58... d4 {[%clk 0:00:04.1]} 59. Kb3 {[%clk 0:00:03.3]} 59... Bxb5 {[%clk
0:00:03.5]} 60. Kc2 {[%clk 0:00:01.2]} 60... Be2 {[%clk 0:00:03.6]} 61. Bf5
{[%clk 0:00:00.3]} 61... d3+ {[%clk 0:00:03.9]} 0-1